[Event "GER-ch Youth U18w 2019"]
[Site "Willingen"]
[Date "2019.06.10"]
[Round "3.13"]
[White "Kuemmel, Tina"]
[Black "Gesell, Patricia"]
[Result "1-0"]
[ECO "A43"]
[WhiteElo "1446"]
[BlackElo "1046"]
[Annotator "NA"]
[PlyCount "81"]
[EventDate "2019.06.07"]
[EventType "swiss"]
[EventRounds "9"]
[EventCountry "GER"]
[SourceTitle "playchess.com"]
[Source "ChessBase"]
[SourceQuality "1"]
[TimeControl "40/5400+30:1800+30"]

1. d4 {[%emt 0:00:00]} c5 {[%emt 0:00:55]} 2. d5 {[%emt 0:01:59]} b5 {[%emt 0:03:39]} 3. g3 {[%emt 0:01:55]} Bb7 {[%emt 0:07:50]} 4. e4 {[%emt 0:05:39]} Nf6 {[%emt 0:03:02]} 5. Bg2 {[%emt 0:04:08]} d6 {[%emt 0:04:17]} 6. Ne2 {[%emt 0:02:34]} e6 {[%emt 0:00:56]} 7. dxe6 {[%emt 0:08:28]} fxe6 {[%emt 0:06:45]} 8. Nf4 {[%emt 0:05:51]} Qc8 {[%emt 0:04:32]} 9. Qe2 {[%emt 0:01:48]} a6 {[%emt 0:01:13]} 10. Nd2 {[%emt 0:00:58]} Be7 {[%emt 0:07:27]} 11. Bh3 {[%emt 0:04:38]} Qc6 {[%emt 0:04:43]} 12. Bxe6 {[%emt 0:03:51]} Nbd7 {[%emt 0:02:08]} 13. Nd5 {[%emt 0:00:49]} Nf8 {[%emt 0:01:01]} 14. Nxf6+ {[%emt 0:00:52]} Bxf6 {[%emt 0:01:17]} 15. Bd5 Qc7 16. Bxb7 {[%emt 0:10:00]} Qxb7 {[%emt 0:00:42]} 17. O-O {[%emt 0:01:30]} Ng6 {[%emt 0:03:47]} 18. Qg4 Rd8 19. c3 {[%emt 0:07:20]} Qd7 {[%emt 0:05:54]} 20. Qxd7+ {[%emt 0:01:37]} Rxd7 {[%emt 0:00:07]} 21. f4 {[%emt 0:00:25]} O-O {[%emt 0:01:48]} 22. Nf3 {[%emt 0:03:23]} Re7 {[%emt 0:01:32]} 23. Rd1 {[%emt 0:05:56]} Rxe4 {[%emt 0:04:28]} 24. Rxd6 {[%emt 0:01:36]} Ra8 {[%emt 0:05:54]} 25. Bd2 {[%emt 0:02:00]} Re2 {[%emt 0:02:25]} 26. Kf1 {[%emt 0:02:29]} Ree8 27. Re1 {[%emt 0:00:13]} Rxe1+ {[%emt 0:05:23]} 28. Bxe1 {[%emt 0:02:49]} b4 {[%emt 0:03:55]} 29. Rc6 {[%emt 0:01:15]} Be7 30. Bf2 Nf8 {[%emt 0:04:09]} 31. Bxc5 {[%emt 0:01:23]} Bxc5 {[%emt 0:00:14]} 32. Rxc5 Rb8 {[%emt 0:00:51]} 33. cxb4 {[%emt 0:00:52]} Rxb4 {[%emt 0:00:15]} 34. b3 {[%emt 0:02:13]} Nd7 35. Rc7 {[%emt 0:00:22]} Nf6 {[%emt 0:05:37]} 36. Ne5 Kf8 37. Rc8+ {[%emt 0:03:57]} Ne8 {[%emt 0:02:49]} 38. Ra8 {[%emt 0:00:22]} Rd4 {[%emt 0:02:05]} 39. Rxa6 {[%emt 0:00:38]} Rd1+ {[%emt 0:00:34]} 40. Ke2 {[%emt 0:01:43]} Rh1 {[%emt 0:01:51]} 41. h4 {[%emt 0:30:38] normal} 1-0

[Event "GER-ch Youth U18w 2019"]
[Site "Willingen"]
[Date "2019.06.11"]
[Round "4.1"]
[White "Schulze, Lara"]
[Black "Arnhold, Steffi"]
[Result "1-0"]
[ECO "B38"]
[WhiteElo "2160"]
[BlackElo "1996"]
[Annotator "NA"]
[PlyCount "81"]
[EventDate "2019.06.07"]
[EventType "swiss"]
[EventRounds "9"]
[EventCountry "GER"]
[SourceTitle "playchess.com"]
[Source "ChessBase"]
[SourceQuality "1"]
[TimeControl "40/5400+30:1800+30"]

1. e4 {[%emt 0:00:00]} c5 {[%emt 0:00:00]} 2. Nf3 {[%emt 0:00:00]} Nc6 {[%emt 0:00:00]} 3. d4 {[%emt 0:00:00]} cxd4 {[%emt 0:00:00]} 4. Nxd4 {[%emt 0:00:00]} g6 {[%emt 0:00:22]} 5. c4 {[%emt 0:00:32]} Bg7 {[%emt 0:00:12]} 6. Be3 {[%emt 0:00:09]} Qb6 {[%emt 0:01:08]} 7. Nb5 {[%emt 0:14:57]} Qa5+ {[%emt 0:00:30]} 8. Bd2 {[%emt 0:03:09]} Qd8 {[%emt 0:01:37]} 9. N1c3 {[%emt 0:01:42]} a6 {[%emt 0:03:21]} 10. Na3 {[%emt 0:00:13]} Nf6 {[%emt 0:01:40]} 11. Bd3 {[%emt 0:01:07]} d6 {[%emt 0:03:04]} 12. O-O {[%emt 0:01:46]} O-O {[%emt 0:02:16]} 13. Nc2 {[%emt 0:08:14]} Ne5 {[%emt 0:10:38]} 14. Be2 {[%emt 0:07:34]} Be6 {[%emt 0:03:53]} 15. Ne3 {[%emt 0:02:08]} Rc8 {[%emt 0:04:23]} 16. b3 {[%emt 0:01:23]} Nc6 {[%emt 0:09:31]} 17. Rc1 {[%emt 0:12:30]} Nd4 {[%emt 0:08:47]} 18. Bd3 {[%emt 0:03:43]} Nd7 {[%emt 0:06:37]} 19. f4 {[%emt 0:06:06]} f5 {[%emt 0:07:30]} 20. Kh1 {[%emt 0:06:04]} Nc5 {[%emt 0:05:11]} 21. Bb1 Bd7 {[%emt 0:02:15]} 22. exf5 {[%emt 0:06:22]} Nxf5 {[%emt 0:02:10]} 23. b4 {[%emt 0:01:38]} Ne6 {[%emt 0:03:05]} 24. Nxf5 {[%emt 0:08:19]} gxf5 {[%emt 0:00:08]} 25. Nd5 {[%emt 0:00:21]} b5 {[%emt 0:04:48]} 26. Be3 {[%emt 0:03:00]} bxc4 {[%emt 0:03:04]} 27. Nb6 {[%emt 0:02:52]} Rc6 {[%emt 0:01:21]} 28. Nxd7 {[%emt 0:01:27]} Qxd7 {[%emt 0:00:34]} 29. Qd5 {[%emt 0:00:35]} Kh8 {[%emt 0:03:26]} 30. Rxc4 {[%emt 0:01:56]} Rxc4 {[%emt 0:00:56]} 31. Qxc4 {[%emt 0:00:01]} Nc7 {[%emt 0:01:23]} 32. Rc1 {[%emt 0:02:59]} Qe6 {[%emt 0:04:21]} 33. Qxe6 {[%emt 0:01:05]} Nxe6 {[%emt 0:00:04]} 34. Bd3 {[%emt 0:00:12]} Rb8 {[%emt 0:02:43]} 35. Bxf5 {[%emt 0:01:34]} Nd4 {[%emt 0:01:28]} 36. Rc8+ {[%emt 0:01:18]} Rxc8 {[%emt 0:00:07]} 37. Bxc8 {[%emt 0:00:01]} Nc2 {[%emt 0:02:01]} 38. Bd2 {[%emt 0:00:33]} a5 {[%emt 0:01:24]} 39. b5 {[%emt 0:01:58]} a4 {[%emt 0:01:56]} 40. b6 {[%emt 0:01:05]} Bd4 {[%emt 0:00:37]} 41. Bc3 {[%emt 0:05:19] normal} 1-0

[Event "GER-ch Youth U18w 2019"]
[Site "Willingen"]
[Date "2019.06.11"]
[Round "4.2"]
[White "Moenster, Madita"]
[Black "Ziegenfuss, Antonia"]
[Result "1-0"]
[ECO "B29"]
[WhiteElo "1994"]
[BlackElo "2111"]
[Annotator "NA"]
[PlyCount "90"]
[EventDate "2019.06.07"]
[EventType "swiss"]
[EventRounds "9"]
[EventCountry "GER"]
[SourceTitle "playchess.com"]
[Source "ChessBase"]
[SourceQuality "1"]
[TimeControl "40/5400+30:1800+30"]

1. e4 {[%emt 0:00:00]} c5 {[%emt 0:00:00]} 2. Nf3 {[%emt 0:00:00]} Nf6 {[%emt 0:00:00]} 3. Nc3 {[%emt 0:00:00]} d5 {[%emt 0:00:00]} 4. Bb5+ {[%emt 0:00:38]} Bd7 {[%emt 0:01:37]} 5. e5 {[%emt 0:01:30]} Bxb5 {[%emt 0:12:12]} 6. Nxb5 {[%emt 0:00:56]} Nfd7 {[%emt 0:00:48]} 7. e6 {[%emt 0:01:21]} fxe6 {[%emt 0:10:04]} 8. O-O {[%emt 0:05:08]} Qb6 {[%emt 0:08:03]} 9. Qe2 {[%emt 0:05:35]} c4 {[%emt 0:06:46]} 10. Nc3 {[%emt 0:05:41]} Na6 {[%emt 0:05:10]} 11. d3 {[%emt 0:09:02]} cxd3 {[%emt 0:09:33]} 12. cxd3 {[%emt 0:00:44]} d4 {[%emt 0:13:28]} 13. Ne4 {[%emt 0:03:00]} h6 {[%emt 0:08:52]} 14. Nfd2 {[%emt 0:11:12]} g6 {[%emt 0:02:45]} 15. Nc4 {[%emt 0:03:50]} Qc6 {[%emt 0:02:45]} 16. Bf4 {[%emt 0:16:26]} Bg7 {[%emt 0:02:27]} 17. Rac1 {[%emt 0:08:11]} Qd5 {[%emt 0:02:15]} 18. Qg4 {[%emt 0:00:41]} Kf7 {[%emt 0:01:49]} 19. Rfe1 {[%emt 0:02:28]} e5 {[%emt 0:05:04]} 20. Bg3 {[%emt 0:02:37]} Qe6 {[%emt 0:01:43]} 21. Qe2 {[%emt 0:02:40]} Rhf8 {[%emt 0:01:18]} 22. Ned2 {[%emt 0:03:44]} Kg8 {[%emt 0:01:16]} 23. Nf3 {[%emt 0:01:45]} Qf5 {[%emt 0:01:23]} 24. Ncxe5 {[%emt 0:01:28]} Nxe5 {[%emt 0:00:38]} 25. Nxe5 {[%emt 0:00:34]} Rac8 {[%emt 0:00:29]} 26. Nf3 {[%emt 0:05:54]} Nb4 {[%emt 0:01:04]} 27. Nh4 {[%emt 0:02:19]} Qf7 {[%emt 0:00:37]} 28. a3 {[%emt 0:00:50]} g5 {[%emt 0:00:48]} 29. Nf3 {[%emt 0:00:45]} Nd5 {[%emt 0:00:18]} 30. Qe4 {[%emt 0:02:28]} Rxc1 {[%emt 0:01:00]} 31. Rxc1 {[%emt 0:00:06]} Qf5 {[%emt 0:00:07]} 32. Nd2 {[%emt 0:02:05]} Qxe4 {[%emt 0:00:38]} 33. Nxe4 {[%emt 0:00:14]} Kf7 {[%emt 0:00:37]} 34. f3 {[%emt 0:02:02]} Kg6 {[%emt 0:00:39]} 35. Nc5 {[%emt 0:00:29]} Rc8 {[%emt 0:00:16]} 36. Nb3 {[%emt 0:00:33]} Rxc1+ {[%emt 0:00:35]} 37. Nxc1 {[%emt 0:00:05]} Ne3 {[%emt 0:00:33]} 38. h4 {[%emt 0:01:09]} Nf5 {[%emt 0:00:14]} 39. Bb8 {[%emt 0:00:31]} Nxh4 {[%emt 0:00:49]} 40. Bxa7 {[%emt 0:00:23]} Nf5 {[%emt 0:00:38]} 41. Nb3 {[%emt 0:02:35]} e5 {[%emt 0:10:36]} 42. a4 {[%emt 0:02:38]} Nd6 {[%emt 0:13:37]} 43. Bb8 {[%emt 0:06:57]} Bf8 {[%emt 0:03:50]} 44. Nc5 {[%emt 0:09:40]} b5 {[%emt 0:03:31]} 45. Nd7 {[%emt 0:01:58]} Be7 {[%emt 0:00:34] normal} 1-0

[Event "GER-ch Youth U18w 2019"]
[Site "Willingen"]
[Date "2019.06.11"]
[Round "4.3"]
[White "Moeller, Lisa-Marie"]
[Black "Nguyen, Ha Thanh"]
[Result "0-1"]
[ECO "B31"]
[WhiteElo "1900"]
[BlackElo "1940"]
[Annotator "NA"]
[PlyCount "76"]
[EventDate "2019.06.07"]
[EventType "swiss"]
[EventRounds "9"]
[EventCountry "GER"]
[SourceTitle "playchess.com"]
[Source "ChessBase"]
[SourceQuality "1"]
[TimeControl "40/5400+30:1800+30"]

1. e4 {[%emt 0:00:00]} c5 {[%emt 0:00:00]} 2. Nf3 {[%emt 0:00:00]} Nc6 {[%emt 0:00:00]} 3. Bb5 {[%emt 0:00:00]} g6 {[%emt 0:00:00]} 4. Bxc6 {[%emt 0:00:00]} dxc6 {[%emt 0:00:00]} 5. h3 {[%emt 0:00:00]} Bg7 {[%emt 0:00:01]} 6. d3 {[%emt 0:00:01]} b6 {[%emt 0:00:22]} 7. Nc3 {[%emt 0:00:49]} e5 {[%emt 0:00:22]} 8. Be3 {[%emt 0:00:38]} Ne7 {[%emt 0:00:36]} 9. Qd2 {[%emt 0:00:41]} h6 {[%emt 0:01:39]} 10. Nh2 {[%emt 0:12:55]} Be6 {[%emt 0:21:55]} 11. O-O {[%emt 0:04:20]} g5 {[%emt 0:09:16]} 12. a4 {[%emt 0:06:36]} Ng6 {[%emt 0:05:09]} 13. a5 {[%emt 0:05:32]} O-O {[%emt 0:02:17]} 14. axb6 {[%emt 0:03:36]} axb6 {[%emt 0:02:05]} 15. Ra4 {[%emt 0:03:08]} Rxa4 {[%emt 0:04:39]} 16. Nxa4 {[%emt 0:00:12]} Qc7 {[%emt 0:00:17]} 17. b4 {[%emt 0:08:38]} Ra8 {[%emt 0:01:31]} 18. Nb2 {[%emt 0:01:08]} Ra2 {[%emt 0:03:00]} 19. Rb1 {[%emt 0:02:35]} cxb4 {[%emt 0:02:02]} 20. Qxb4 {[%emt 0:00:33]} c5 {[%emt 0:00:44]} 21. Qc3 {[%emt 0:03:59]} Nf4 {[%emt 0:01:29]} 22. Kf1 {[%emt 0:03:30]} Qa7 {[%emt 0:07:29]} 23. Nc4 {[%emt 0:02:51]} b5 {[%emt 0:04:31]} 24. Nd6 {[%emt 0:05:16]} b4 {[%emt 0:02:47]} 25. Qxc5 {[%emt 0:01:22]} Qxc5 {[%emt 0:00:13]} 26. Bxc5 {[%emt 0:00:03]} Rxc2 {[%emt 0:00:11]} 27. Bxb4 {[%emt 0:02:17]} Nxd3 {[%emt 0:02:13]} 28. Be1 {[%emt 0:02:16]} Kh7 {[%emt 0:05:16]} 29. Ng4 {[%emt 0:04:45]} Kg6 {[%emt 0:03:35]} 30. Ne3 {[%emt 0:02:38]} Rc6 {[%emt 0:03:12]} 31. Nef5 {[%emt 0:01:57]} Bf8 {[%emt 0:01:25]} 32. Rd1 {[%emt 0:07:32]} Bxd6 {[%emt 0:00:41]} 33. Rxd3 {[%emt 0:02:04]} Bc4 {[%emt 0:00:09]} 34. Ke2 {[%emt 0:00:40]} Ra6 {[%emt 0:03:10]} 35. Ne3 {[%emt 0:02:43]} Ra2+ {[%emt 0:00:49]} 36. Bd2 {[%emt 0:00:13]} Ba6 {[%emt 0:02:03]} 37. Nd1 {[%emt 0:00:51]} Bb4 {[%emt 0:00:25] normal} 38. Ke3 {[%emt 0:00:50] normal} Bc5+ {[%emt 0:02:18]} 0-1

[Event "GER-ch Youth U18w 2019"]
[Site "Willingen"]
[Date "2019.06.11"]
[Round "4.4"]
[White "Ratay, Meike"]
[Black "Browning, Rebecca"]
[Result "1/2-1/2"]
[ECO "C11"]
[WhiteElo "1991"]
[BlackElo "1923"]
[Annotator "NA"]
[PlyCount "50"]
[EventDate "2019.06.07"]
[EventType "swiss"]
[EventRounds "9"]
[EventCountry "GER"]
[SourceTitle "playchess.com"]
[Source "ChessBase"]
[SourceQuality "1"]
[TimeControl "40/5400+30:1800+30"]

1. e4 {[%emt 0:00:00]} e6 {[%emt 0:00:00]} 2. d4 {[%emt 0:00:00]} d5 {[%emt 0:00:00]} 3. Nc3 {[%emt 0:00:00]} Nf6 {[%emt 0:00:15]} 4. e5 {[%emt 0:00:00]} Nfd7 {[%emt 0:01:14]} 5. f4 {[%emt 0:00:13]} c5 {[%emt 0:00:41]} 6. Nf3 {[%emt 0:00:11]} Nc6 {[%emt 0:00:09]} 7. Be3 {[%emt 0:00:14]} a6 {[%emt 0:00:46]} 8. Qd2 {[%emt 0:00:24]} b5 {[%emt 0:00:36]} 9. dxc5 {[%emt 0:01:41]} Bxc5 {[%emt 0:00:28]} 10. Bd3 {[%emt 0:00:55]} Qb6 {[%emt 0:00:58]} 11. Bf2 {[%emt 0:01:40]} Bxf2+ {[%emt 0:08:27]} 12. Qxf2 {[%emt 0:00:07]} Qxf2+ {[%emt 0:01:06]} 13. Kxf2 {[%emt 0:00:05]} Nc5 {[%emt 0:00:12]} 14. Ke3 {[%emt 0:06:09]} b4 {[%emt 0:03:23]} 15. Ne2 {[%emt 0:01:41]} a5 {[%emt 0:04:18]} 16. Ned4 {[%emt 0:07:17]} Nxd4 {[%emt 0:04:32]} 17. Nxd4 {[%emt 0:00:17]} Bd7 {[%emt 0:01:47]} 18. Rhc1 {[%emt 0:10:24]} Ke7 {[%emt 0:01:58]} 19. c4 {[%emt 0:04:14]} bxc3 {[%emt 0:02:05]} 20. Rxc3 {[%emt 0:04:12]} Nxd3 {[%emt 0:03:25]} 21. Kxd3 {[%emt 0:00:32]} Ra6 {[%emt 0:04:28]} 22. Rac1 {[%emt 0:13:48]} Rb8 {[%emt 0:02:26]} 23. R1c2 {[%emt 0:02:37]} a4 {[%emt 0:05:23]} 24. Rc7 {[%emt 0:03:19]} Ke8 {[%emt 0:01:19]} 25. g3 {[%emt 0:03:24]} h6 {[%emt 0:03:45] normal Ke4} 1/2-1/2

[Event "GER-ch Youth U18w 2019"]
[Site "Willingen"]
[Date "2019.06.11"]
[Round "4.5"]
[White "Koenze, Heike"]
[Black "Koehler, Inken"]
[Result "1/2-1/2"]
[ECO "B07"]
[WhiteElo "1919"]
[BlackElo "1975"]
[Annotator "NA"]
[PlyCount "57"]
[EventDate "2019.06.07"]
[EventType "swiss"]
[EventRounds "9"]
[EventCountry "GER"]
[SourceTitle "playchess.com"]
[Source "ChessBase"]
[SourceQuality "1"]
[TimeControl "40/5400+30:1800+30"]

1. e4 {[%emt 0:00:00]} d6 {[%emt 0:00:00]} 2. d4 {[%emt 0:00:00]} Nf6 {[%emt 0:00:00]} 3. Nc3 {[%emt 0:00:00]} Nbd7 {[%emt 0:00:00]} 4. Nf3 {[%emt 0:00:26]} e5 {[%emt 0:00:09]} 5. Bg5 {[%emt 0:00:40]} Be7 {[%emt 0:00:39]} 6. dxe5 {[%emt 0:01:07]} dxe5 {[%emt 0:00:22]} 7. Be2 {[%emt 0:03:54]} O-O {[%emt 0:01:01]} 8. O-O {[%emt 0:00:10]} c6 {[%emt 0:01:13]} 9. h3 {[%emt 0:04:17]} Qc7 {[%emt 0:01:16]} 10. Bc4 {[%emt 0:02:34]} Nc5 {[%emt 0:06:41]} 11. Re1 {[%emt 0:03:41]} b5 {[%emt 0:03:41]} 12. Bb3 {[%emt 0:00:38]} a5 {[%emt 0:15:35]} 13. a3 {[%emt 0:01:02]} Be6 {[%emt 0:01:15]} 14. Bxe6 {[%emt 0:00:23]} Nxe6 {[%emt 0:00:03]} 15. Qe2 {[%emt 0:07:01]} Nd4 {[%emt 0:09:57]} 16. Nxd4 {[%emt 0:01:49]} exd4 {[%emt 0:00:04]} 17. e5 {[%emt 0:00:53]} Ne8 {[%emt 0:06:06]} 18. Bxe7 {[%emt 0:00:15]} Qxe7 {[%emt 0:00:02]} 19. Nb1 {[%emt 0:01:59]} Nc7 {[%emt 0:02:03]} 20. Nd2 {[%emt 0:00:31]} Rfe8 {[%emt 0:01:20]} 21. Qe4 {[%emt 0:04:30]} c5 {[%emt 0:02:13]} 22. a4 {[%emt 0:00:47]} Qd7 {[%emt 0:11:43]} 23. axb5 {[%emt 0:01:14]} Qxb5 {[%emt 0:00:07]} 24. b3 {[%emt 0:03:22]} Qb4 {[%emt 0:16:28]} 25. Nc4 {[%emt 0:02:00]} Ra6 {[%emt 0:04:21]} 26. Qf5 {[%emt 0:06:22]} Rae6 {[%emt 0:05:17]} 27. Kh2 {[%emt 0:02:25]} g6 {[%emt 0:02:29]} 28. Qf3 {[%emt 0:03:57]} Nb5 {[%emt 0:06:03]} 29. Re4 {[%emt 0:02:42] normal} 1/2-1/2

[Event "GER-ch Youth U18w 2019"]
[Site "Willingen"]
[Date "2019.06.11"]
[Round "4.6"]
[White "Fuchs, Emily"]
[Black "Poetsch, Leonore"]
[Result "0-1"]
[ECO "C01"]
[WhiteElo "1384"]
[BlackElo "1982"]
[Annotator "NA"]
[PlyCount "88"]
[EventDate "2019.06.07"]
[EventType "swiss"]
[EventRounds "9"]
[EventCountry "GER"]
[SourceTitle "playchess.com"]
[Source "ChessBase"]
[SourceQuality "1"]
[TimeControl "40/5400+30:1800+30"]

1. e4 {[%emt 0:00:00]} e6 {[%emt 0:00:00]} 2. d4 {[%emt 0:00:00]} d5 {[%emt 0:00:00]} 3. exd5 {[%emt 0:00:00]} exd5 {[%emt 0:00:00]} 4. Bd3 {[%emt 0:00:00]} Nc6 {[%emt 0:00:00]} 5. c3 {[%emt 0:00:00]} Bd6 {[%emt 0:00:11]} 6. Nf3 {[%emt 0:00:08]} Nge7 {[%emt 0:00:12]} 7. O-O {[%emt 0:00:15]} Bf5 {[%emt 0:00:28]} 8. Re1 {[%emt 0:00:49]} Bxd3 {[%emt 0:00:11]} 9. Qxd3 {[%emt 0:00:06]} O-O {[%emt 0:00:10]} 10. Nbd2 {[%emt 0:01:57]} Qd7 {[%emt 0:03:12]} 11. Nf1 {[%emt 0:03:53]} Rae8 {[%emt 0:01:59]} 12. Ng3 {[%emt 0:05:35]} Ng6 {[%emt 0:02:21]} 13. Bd2 {[%emt 0:02:20]} Nd8 {[%emt 0:17:58]} 14. Rxe8 {[%emt 0:18:15]} Rxe8 {[%emt 0:03:56]} 15. Re1 {[%emt 0:05:36]} Rxe1+ {[%emt 0:03:05]} 16. Nxe1 {[%emt 0:02:36]} Qa4 {[%emt 0:02:51]} 17. a3 {[%emt 0:03:41]} Qb3 {[%emt 0:01:51]} 18. Qc2 {[%emt 0:02:41]} Qb5 {[%emt 0:03:52]} 19. a4 {[%emt 0:11:07]} Qe8 {[%emt 0:02:21]} 20. Nf3 {[%emt 0:05:29]} Ne6 {[%emt 0:02:04]} 21. Nf5 {[%emt 0:04:12]} Bf8 {[%emt 0:02:03]} 22. Qb3 {[%emt 0:04:59]} Qc6 {[%emt 0:05:02]} 23. Qb5 {[%emt 0:05:22]} Qxb5 {[%emt 0:03:04]} 24. axb5 {[%emt 0:00:10]} f6 {[%emt 0:02:32]} 25. b3 {[%emt 0:02:58]} Ne7 {[%emt 0:03:13]} 26. Nxe7+ {[%emt 0:01:52]} Bxe7 {[%emt 0:00:05]} 27. c4 {[%emt 0:01:34]} dxc4 {[%emt 0:03:03]} 28. bxc4 {[%emt 0:00:09]} Kf7 {[%emt 0:01:39]} 29. Kf1 {[%emt 0:00:46]} h5 {[%emt 0:03:59]} 30. Ke2 {[%emt 0:03:40]} g5 {[%emt 0:04:16]} 31. Kd3 {[%emt 0:01:18]} Bd6 {[%emt 0:05:24]} 32. g3 {[%emt 0:03:10]} Kg6 {[%emt 0:05:39]} 33. c5 {[%emt 0:00:56]} Be7 {[%emt 0:01:51]} 34. Kc4 {[%emt 0:02:25]} c6 {[%emt 0:01:16]} 35. Bb4 {[%emt 0:05:08]} Nc7 {[%emt 0:06:40]} 36. bxc6 {[%emt 0:02:54]} bxc6 {[%emt 0:00:07]} 37. Ne1 {[%emt 0:00:46]} Nd5 {[%emt 0:01:35]} 38. Nd3 {[%emt 0:00:46]} Kf5 {[%emt 0:03:18]} 39. h3 {[%emt 0:01:03]} Ke4 {[%emt 0:01:50]} 40. Bd2 {[%emt 0:00:45]} Bd8 {[%emt 0:03:58]} 41. f4 {[%emt 0:04:10]} g4 {[%emt 0:04:56]} 42. hxg4 {[%emt 0:05:10]} hxg4 {[%emt 0:03:13]} 43. Be1 {[%emt 0:09:08]} Ne3+ {[%emt 0:01:02]} 44. Kb3 {[%emt 0:02:36]} Kxd3 {[%emt 0:00:26] normal} 0-1

[Event "GER-ch Youth U18w 2019"]
[Site "Willingen"]
[Date "2019.06.11"]
[Round "4.7"]
[White "Reitz, Theresa"]
[Black "Fock, Sana"]
[Result "1/2-1/2"]
[ECO "A06"]
[WhiteElo "1976"]
[BlackElo "1796"]
[Annotator "NA"]
[PlyCount "77"]
[EventDate "2019.06.07"]
[EventType "swiss"]
[EventRounds "9"]
[EventCountry "GER"]
[SourceTitle "playchess.com"]
[Source "ChessBase"]
[SourceQuality "1"]
[TimeControl "40/5400+30:1800+30"]

1. Nf3 {[%emt 0:00:00]} d5 {[%emt 0:00:00]} 2. g3 {[%emt 0:00:00]} Nf6 {[%emt 0:00:00]} 3. Bg2 {[%emt 0:00:00]} e6 {[%emt 0:00:00]} 4. O-O {[%emt 0:00:00]} Be7 {[%emt 0:00:19]} 5. d4 {[%emt 0:00:24]} O-O {[%emt 0:00:10]} 6. c4 {[%emt 0:00:25]} c6 {[%emt 0:00:18]} 7. b3 {[%emt 0:01:49]} b6 {[%emt 0:01:02]} 8. Bb2 {[%emt 0:01:32]} Bb7 {[%emt 0:00:47]} 9. Nc3 {[%emt 0:04:47]} Nbd7 {[%emt 0:01:10]} 10. Re1 {[%emt 0:12:41]} Rc8 {[%emt 0:04:19]} 11. e4 {[%emt 0:11:10]} dxe4 {[%emt 0:09:03]} 12. Ng5 {[%emt 0:03:57]} h6 {[%emt 0:12:28]} 13. Ngxe4 {[%emt 0:00:33]} Nxe4 {[%emt 0:05:34]} 14. Bxe4 {[%emt 0:03:12]} Nf6 {[%emt 0:03:30]} 15. Bg2 {[%emt 0:00:05]} Rc7 {[%emt 0:04:44]} 16. Re2 {[%emt 0:14:34]} Qa8 {[%emt 0:07:35]} 17. Qe1 {[%emt 0:05:44]} Rd8 {[%emt 0:02:54]} 18. Rd1 {[%emt 0:00:38]} Rcd7 {[%emt 0:06:37]} 19. Red2 {[%emt 0:07:36]} b5 {[%emt 0:14:55]} 20. Qe2 {[%emt 0:11:03]} Bb4 {[%emt 0:02:09]} 21. a3 {[%emt 0:01:32]} Be7 {[%emt 0:04:30]} 22. cxb5 {[%emt 0:06:25]} cxb5 {[%emt 0:00:28]} 23. Bxb7 {[%emt 0:00:05]} Qxb7 {[%emt 0:00:07]} 24. Qxb5 {[%emt 0:00:34]} Qxb5 {[%emt 0:00:32]} 25. Nxb5 {[%emt 0:00:01]} Rb7 {[%emt 0:00:21]} 26. a4 {[%emt 0:02:46]} a6 {[%emt 0:00:10]} 27. Na3 {[%emt 0:03:38]} Rxb3 {[%emt 0:00:24]} 28. Nc4 {[%emt 0:00:11]} Rc8 {[%emt 0:03:06]} 29. Ne5 {[%emt 0:04:03]} Nd5 {[%emt 0:01:01]} 30. Nd3 {[%emt 0:02:11]} Ba3 {[%emt 0:04:09]} 31. Bxa3 {[%emt 0:01:03]} Rxa3 {[%emt 0:00:08]} 32. Nc5 {[%emt 0:00:18]} a5 {[%emt 0:01:09]} 33. Rb1 {[%emt 0:02:00]} Nb4 {[%emt 0:03:08]} 34. f4 {[%emt 0:00:59]} Kf8 {[%emt 0:02:23]} 35. Kg2 {[%emt 0:00:37]} Ke7 {[%emt 0:01:02]} 36. Rb3 {[%emt 0:00:30]} Rxb3 {[%emt 0:01:02]} 37. Nxb3 {[%emt 0:00:06]} Ra8 {[%emt 0:02:39]} 38. Kf3 {[%emt 0:00:28]} Nd5 {[%emt 0:01:04]} 39. Ke4 {normal} 1/2-1/2

[Event "GER-ch Youth U18w 2019"]
[Site "Willingen"]
[Date "2019.06.11"]
[Round "4.8"]
[White "Kobald, Jacqueline"]
[Black "Kadach, Maria"]
[Result "1-0"]
[ECO "B17"]
[WhiteElo "1839"]
[BlackElo "1448"]
[Annotator "NA"]
[PlyCount "57"]
[EventDate "2019.06.07"]
[EventType "swiss"]
[EventRounds "9"]
[EventCountry "GER"]
[SourceTitle "playchess.com"]
[Source "ChessBase"]
[SourceQuality "1"]
[TimeControl "40/5400+30:1800+30"]

1. e4 {[%emt 0:00:00]} c6 {[%emt 0:00:00]} 2. d4 {[%emt 0:00:00]} d5 {[%emt 0:00:00]} 3. Nc3 {[%emt 0:00:00]} dxe4 {[%emt 0:00:00]} 4. Nxe4 {[%emt 0:00:00]} Nd7 {[%emt 0:00:00]} 5. Ng5 {[%emt 0:00:37]} Ngf6 {[%emt 0:00:33]} 6. Bd3 {[%emt 0:01:28]} e6 {[%emt 0:00:19]} 7. Qe2 {[%emt 0:01:31]} Bd6 {[%emt 0:01:47]} 8. N1f3 {[%emt 0:00:29]} h6 {[%emt 0:00:43]} 9. Ne4 {[%emt 0:00:52]} Nxe4 {[%emt 0:00:49]} 10. Qxe4 {[%emt 0:00:16]} Nf6 {[%emt 0:00:26]} 11. Qe2 {[%emt 0:00:45]} Qc7 {[%emt 0:01:10]} 12. Bd2 {[%emt 0:04:13]} O-O {[%emt 0:02:20]} 13. O-O-O {[%emt 0:08:20]} c5 {[%emt 0:01:30]} 14. g4 {[%emt 0:12:07]} cxd4 {[%emt 0:07:57]} 15. Nxd4 {[%emt 0:15:30]} Bf4 {[%emt 0:19:43]} 16. h4 {[%emt 0:11:27]} Bxd2+ {[%emt 0:05:54]} 17. Qxd2 {[%emt 0:01:02]} h5 {[%emt 0:18:57]} 18. gxh5 {[%emt 0:08:11]} Nxh5 {[%emt 0:00:11]} 19. Ne2 {[%emt 0:01:06]} Qe5 {[%emt 0:11:49]} 20. Rdg1 {[%emt 0:04:29]} Qf6 {[%emt 0:08:09]} 21. Rg5 {[%emt 0:02:07]} g6 {[%emt 0:07:29]} 22. Rhg1 {[%emt 0:00:38]} Kh8 {[%emt 0:01:51]} 23. Bxg6 {[%emt 0:03:40]} fxg6 {[%emt 0:02:38]} 24. Rxg6 {[%emt 0:00:07]} Qf7 {[%emt 0:06:49]} 25. Rh6+ {[%emt 0:00:14]} Qh7 {[%emt 0:00:11]} 26. Rxh7+ {[%emt 0:00:17]} Kxh7 {[%emt 0:00:10]} 27. Qg5 {[%emt 0:00:23]} Rf6 {[%emt 0:01:27]} 28. Qg8+ {[%emt 0:00:15]} Kh6 {[%emt 0:00:24]} 29. Qh8# {normal} 1-0